[Event "FIDE World Blitz Championship 2021"]
[Site "Warsaw, Poland"]
[Date "2021.12.30"]
[Round "17"]
[White "*GM_Vachier-Lag"]
[Black "*GM_Aronian"]
[Result "1-0"]
[ECO "C78"]
[WhiteElo "2787"]
[BlackElo "2740"]
[Annotator "Ronen Har-Zvi"]
[PlyCount "133"]
[EventDate "2021.??.??"]
[EventType "blitz"]
[TimeControl "180+2"]

{[%evp 0,133,24,16,16,13,20,20,31,7,-2,20,14,5,5,26,26,36,64,57,55,-54,56,22,
85,-18,125,90,90,97,148,108,58,89,62,5,0,11,-1,17,20,4,-1,-7,0,12,25,31,21,19,
14,12,26,23,47,38,51,37,49,41,44,87,68,-7,-20,-60,-62,-70,-69,-114,-116,-104,
-99,-124,-147,-143,-158,-255,-175,-175,-179,-221,-153,-145,-144,-147,-145,-149,
-117,-127,-141,-136,-141,-141,-143,-227,-80,-69,0,0,15,-203,-185,-184,-43,-26,
45,92,59,1,111,190,198,227,227,206,206,263,265,261,368,398,445,589,819,140,130,
138,157,182,185,185,185,141,227,230]} 1. e4 {[%emt 0:03:02]} e5 {[%emt 0:03:00]
} 2. Nf3 {[%emt 0:03:03]} Nc6 {[%emt 0:03:03]} 3. Bb5 {[%emt 0:03:04]} a6 {
[%emt 0:03:04]} 4. Ba4 {[%emt 0:03:05]} Nf6 {[%emt 0:03:05]} 5. O-O {[%emt 0:
03:06]} b5 {[%emt 0:03:06]} 6. Bb3 {[%emt 0:03:07]} Bc5 {[%emt 0:03:07]} 7. a4
{[%emt 0:03:08]} Rb8 {[%emt 0:03:08]} 8. c3 {[%emt 0:03:03]} d6 {[%emt 0:03:08]
} 9. d4 {[%emt 0:03:04]} Bb6 {[%emt 0:03:09]} 10. a5 {[%emt 0:03:04]} Ba7 {
[%emt 0:03:10]} 11. Be3 {[%emt 0:03:01]} O-O {[%emt 0:02:07]} 12. h3 {[%emt 0:
02:48]} Re8 {[%emt 0:02:06]} 13. dxe5 {[%emt 0:02:27]} Bxe3 {[%emt 0:02:03]}
14. exf6 {[%emt 0:02:29]} Bf4 {[%emt 0:01:35]} 15. Qd5 {[%emt 0:02:11]} Ne5 {
[%emt 0:01:06]} 16. Nxe5 {[%emt 0:02:05]} Be6 {[%emt 0:01:15]} 17. Nxf7 {
[%emt 0:01:28]} Qxf6 {[%emt 0:01:16]} 18. Qd1 {[%emt 0:01:31]} Qxf7 {[%emt 0:
01:15]} 19. Bxe6 {[%emt 0:01:13]} Rxe6 {[%emt 0:01:09]} 20. Nd2 {[%emt 0:01:19]
} Rbe8 {[%emt 0:00:56]} 21. Re1 {[%emt 0:01:20]} h6 {[%emt 0:00:44]} 22. Nf3 {
[%emt 0:00:47]} Rxe4 {[%emt 0:00:38]} 23. Rxe4 {[%emt 0:01:03]} Rxe4 {[%emt 0:
00:30]} 24. g3 {[%emt 0:01:03]} Bg5 {[%emt 0:00:21]} 25. Qd3 {[%emt 0:01:03]}
Qc4 {[%emt 0:00:27]} 26. Qxc4+ {[%emt 0:00:56]} bxc4 {[%emt 0:00:08]} 27. h4 {
[%emt 0:00:56]} Bf6 {[%emt 0:00:05]} 28. Nd2 {[%emt 0:00:45]} Rg4 {[%emt 0:00:
14]} 29. Kg2 {[%emt 0:00:32]} d5 {[%emt 0:00:05]} 30. Re1 {[%emt 0:00:42]} Kf7
{[%emt 0:00:04]} 31. f3 {[%emt 0:00:23]} Rg6 {[%emt 0:00:06]} 32. h5 {[%emt 0:
00:19]} Rg5 {[%emt 0:00:07]} 33. f4 {[%emt 0:00:21]} Rxh5 {[%emt 0:00:08]} 34.
g4 {[%emt 0:00:22]} Rh4 {[%emt 0:00:06]} 35. Kg3 {[%emt 0:00:23]} h5 {[%emt 0:
00:06]} 36. g5 {[%emt 0:00:25]} Rg4+ {[%emt 0:00:04]} 37. Kf3 {[%emt 0:00:25]}
Be7 {[%emt 0:00:05]} 38. Rh1 {[%emt 0:00:26]} Bd6 {Let me describe the
tournament situation here - Aronian had 13 out of 16.. only one player Dubov
with 12 points and only player rjun with 11.5.. everyone else 11 or under..
Aronian is completely winning the game is over.. in a standard game MVL would
have clearly resigned here but Blitz has it's own rules as we already know!
Aornian wins and the tournament simply ends.. but.. but...} 39. Rxh5 {[%emt 0:
00:22]} Rxf4+ {[%emt 0:00:07]} 40. Ke3 {[%emt 0:00:20]} Rf5 {[%emt 0:00:08]} (
40... Kg6) 41. Nf3 {[%emt 0:00:21]} Bc5+ {[%emt 0:00:10]} 42. Ke2 {[%emt 0:00:
20]} Kg8 {[%emt 0:00:10]} 43. Rh1 {[%emt 0:00:21]} Rf7 {[%emt 0:00:08]} 44. g6
{[%emt 0:00:18]} Re7+ {[%emt 0:00:09]} 45. Kd2 {[%emt 0:00:14]} Re6 {[%emt 0:
00:10]} 46. Rh5 {[%emt 0:00:13]} c6 {[%emt 0:00:11]} 47. Ne5 {[%emt 0:00:14]}
Be7 {[%emt 0:00:13]} (47... Bd6 {simple} 48. Nxc6 (48. Nf7 Rxg6) 48... Bf4+)
48. Rf5 {[%emt 0:00:15]} Bd8 {[%emt 0:00:10]} 49. Nd7 {[%emt 0:00:13]} Be7 {
[%emt 0:00:08]} 50. Nb8 {[%emt 0:00:13]} Rxg6 {[%emt 0:00:07]} 51. Nxa6 {
[%emt 0:00:13]} Bd6 {[%emt 0:00:06] No! Bd8 winning the a5 pawn - the game -
and the world championship..} (51... Bd8 {[%cal Gd8a5]}) 52. Nb4 {[%emt 0:00:
13]} Bxb4 {[%emt 0:00:05]} 53. cxb4 {[%emt 0:00:13]} Rg1 {[%emt 0:00:05]} 54.
Rf3 {[%emt 0:00:07] Black is up a pawn but the dangerous pass "a" means that
black is defending.. there's probably only one move to make draw here 54...d4
blocking Ra3 from white... analysing the rook endgame deeply.. another time :)}
Ra1 $4 {[%emt 0:00:07]} (54... d4 55. a6 d3 {[%csl Rd3][%cal Gg1a1,Rf3a3]} (
55... c3+ 56. bxc3 Ra1)) 55. Ra3 {[%emt 0:00:07] woo! over} Rf1 {[%emt 0:00:05]
} 56. a6 {[%emt 0:00:08]} Rf8 {[%emt 0:00:05]} 57. a7 {[%emt 0:00:09]} Ra8 {
[%emt 0:00:06]} 58. Kc3 {[%emt 0:00:10]} Kf7 {[%emt 0:00:08]} 59. Kd4 {[%emt 0:
00:12]} g5 {[%emt 0:00:06]} 60. Kc5 {[%emt 0:00:13]} g4 {[%emt 0:00:06]} 61.
Kxc6 {[%emt 0:00:14]} g3 {[%emt 0:00:08]} 62. Rxg3 {[%emt 0:00:12]} Rxa7 {
[%emt 0:00:09]} 63. Kxd5 {[%emt 0:00:11]} Ra2 {[%emt 0:00:10]} 64. Kxc4 {
[%emt 0:00:12]} Rxb2 {[%emt 0:00:11]} 65. Re3 {[%emt 0:00:12]} Rc2+ {[%emt 0:
00:12]} 66. Kb5 {[%emt 0:00:13]} Rc8 {[%emt 0:00:13]} 67. Ka6 {[%emt 0:00:14]
White wins} 1-0

[Event "FIDE World Blitz Championship 2021"]
[Site "Warsaw, Poland"]
[Date "2021.12.29"]
[Round "9"]
[White "*GM_Mamedyarov"]
[Black "*GM_Carlsen"]
[Result "1-0"]
[ECO "A45"]
[WhiteElo "2754"]
[BlackElo "2892"]
[Annotator "Ronen Har-Zvi"]
[PlyCount "71"]
[EventDate "2021.??.??"]
[EventType "blitz"]
[TimeControl "180+2"]

{[%evp 0,71,24,26,27,-9,-1,-9,-9,-1,35,31,23,37,98,28,41,-26,-28,-28,-28,-21,
91,-8,-41,-51,-51,-51,-51,-54,-50,-66,-45,-71,-32,-64,-6,0,0,-45,3,-22,73,76,
94,95,103,91,87,69,75,78,209,199,213,204,211,230,256,176,183,182,217,200,330,
350,532,532,538,507,518,529,898,1840]} 1. d4 {[%emt 0:03:02] Thinking about it
- it's amazing that Carlsen finished with 13.5 out of 21 and yet this feels
like a total horrible tournament for him - it probably just means how strong
and completely dominate he has become in the chess world - pretty much any
tournament he is not winning is already a surprise and if he is not second
it's already a shocker! Still - 6 loses for Magnus truly feels wrong .. I will
quickly show two of his losses and this truly was not his tournament} Nf6 {
[%emt 0:02:42]} 2. Bg5 {[%emt 0:03:03]} d5 {[%emt 0:02:54]} 3. Nd2 {[%emt 0:03:
04]} c5 {[%emt 0:02:46]} 4. dxc5 {[%emt 0:03:05]} Qa5 {[%emt 0:02:38]} 5. Ngf3
{[%emt 0:03:05]} Qxc5 {[%emt 0:02:14]} 6. e3 {[%emt 0:02:43]} Ne4 {[%emt 0:02:
14]} 7. Bd3 {[%emt 0:02:39]} Nxd2 {[%emt 0:01:22]} 8. Qxd2 {[%emt 0:02:41]} f6
{[%emt 0:01:29]} 9. Bh4 {[%emt 0:02:26]} e5 {[%emt 0:01:27]} 10. e4 {[%emt 0:
02:35]} Nc6 {[%emt 0:01:27]} 11. O-O {[%emt 0:02:15]} Be6 {[%emt 0:01:24]} 12.
a3 {[%emt 0:02:16]} dxe4 {[%emt 0:01:08]} 13. Bxe4 {[%emt 0:02:12]} Rd8 {
[%emt 0:01:13]} 14. Qc1 {[%emt 0:01:59]} Be7 {[%emt 0:01:14]} 15. b4 {[%emt 0:
02:02]} Qc4 {[%emt 0:00:57]} 16. Re1 {[%emt 0:02:04]} Rd7 {[%emt 0:00:44]} 17.
h3 {[%emt 0:01:55]} Nd4 {[%emt 0:00:09]} 18. Nxd4 {[%emt 0:01:08]} Rxd4 {
[%emt 0:00:27]} 19. Qe3 {[%emt 0:01:02]} O-O {[%emt 0:00:28]} 20. Bg3 {[%emt 0:
01:00]} b6 {[%emt 0:00:26]} 21. Bd3 {[%emt 0:00:47]} Qd5 {[%emt 0:00:08]} 22.
f4 {[%emt 0:00:50]} Rd8 {[%emt 0:00:11]} 23. fxe5 {[%emt 0:00:51]} f5 {[%emt 0:
00:06]} 24. Bf2 {[%emt 0:00:52]} Qc6 {[%emt 0:00:07]} 25. Rad1 {[%emt 0:00:52]
Carlsen was better early on and was outplayed but blundering the game to a
basic tactic feels wrong does not matter how his tournament was} g6 $4 {
[%emt 0:00:02]} 26. Bb5 {[%emt 0:00:49] strange miss for the world champ -
which happened quite too many times during this tournament} Qxb5 {[%emt 0:00:
05]} 27. Rxd4 {[%emt 0:00:46]} Rc8 {[%emt 0:00:05]} 28. c4 {[%emt 0:00:47]}
Rxc4 {0:00:-2} 29. Qd3 {[%emt 0:00:45]} Qc6 {[%emt 0:00:05]} 30. Rxc4 {[%emt 0:
00:45]} Bxc4 {[%emt 0:00:06]} 31. Qc3 {[%emt 0:00:43]} a6 {[%emt 0:00:07]} 32.
e6 {[%emt 0:00:42]} b5 {[%emt 0:00:08]} 33. Qe5 {[%emt 0:00:42]} Qd5 {[%emt 0:
00:07]} 34. Qb8+ {[%emt 0:00:43]} Kg7 {[%emt 0:00:07]} 35. Qc7 {[%emt 0:00:35]}
Kf6 {[%emt 0:00:08]} 36. Bh4+ {[%emt 0:00:36] White wins} 1-0

[Event "FIDE World Blitz Championship 2021"]
[Site "Warsaw, Poland"]
[Date "2021.12.30"]
[Round "16"]
[White "*GM_Grischuk"]
[Black "*GM_Carlsen"]
[Result "1-0"]
[ECO "E04"]
[WhiteElo "2757"]
[BlackElo "2892"]
[Annotator "Ronen Har-Zvi"]
[PlyCount "116"]
[EventDate "2021.??.??"]
[EventType "blitz"]
[TimeControl "180+2"]

{[%evp 0,116,32,37,30,2,6,-11,-25,-24,-25,-11,22,18,14,-9,23,-2,-4,0,2,-4,18,
20,14,10,42,7,16,12,26,36,8,-18,-4,-15,-10,-33,-9,-50,-40,-55,27,24,15,-74,-76,
-84,-47,-46,-43,-29,-35,-36,-38,-38,-35,-33,-12,-27,9,0,0,0,24,28,0,0,32,29,25,
32,32,0,72,79,88,88,80,81,68,69,69,47,49,38,49,48,64,79,63,63,73,85,143,138,
123,120,113,176,170,160,162,189,172,211,172,150,173,72,72,94,111,191,169,194,
191,194,329]} 1. d4 {[%emt 0:03:02]} Nf6 {[%emt 0:03:00]} 2. c4 {[%emt 0:03:02]
} e6 {[%emt 0:03:03]} 3. g3 {[%emt 0:03:03]} d5 {[%emt 0:03:03]} 4. Bg2 {
[%emt 0:03:03]} dxc4 {[%emt 0:02:57]} 5. Nf3 {[%emt 0:03:03]} Bb4+ {[%emt 0:02:
50]} 6. Bd2 {[%emt 0:02:50]} a5 {[%emt 0:02:46]} 7. Qc1 {[%emt 0:02:44]} b6 {
[%emt 0:02:27]} 8. Bxb4 {[%emt 0:02:20]} axb4 {[%emt 0:02:30]} 9. Qxc4 {
[%emt 0:02:16]} Bb7 {[%emt 0:02:30]} 10. O-O {[%emt 0:02:05]} Nc6 {[%emt 0:02:
28]} 11. Nbd2 {[%emt 0:01:53]} O-O {[%emt 0:02:25]} 12. Rfc1 {[%emt 0:01:56]}
Nd5 {[%emt 0:02:25]} 13. Qc2 {[%emt 0:01:36]} h6 {[%emt 0:02:20]} 14. Nc4 {
[%emt 0:01:22]} Ra7 {[%emt 0:01:59]} 15. Nce5 {[%emt 0:01:32]} Nde7 {[%emt 0:
01:36]} 16. Nxc6 {[%emt 0:01:26]} Bxc6 {[%emt 0:01:34]} 17. e3 {[%emt 0:01:08]}
Qa8 {[%emt 0:01:50]} 18. Ng5 {[%emt 0:00:53]} hxg5 {[%emt 0:01:50]} 19. Bxc6 {
[%emt 0:00:52]} Nxc6 {[%emt 0:01:19]} 20. Qxc6 {[%emt 0:00:52]} Qxc6 {[%emt 0:
01:27]} 21. Rxc6 {[%emt 0:00:53]} Rfa8 {[%emt 0:01:19]} 22. Rac1 {[%emt 0:00:
40]} Rxa2 {[%emt 0:01:19]} 23. Rxc7 {[%emt 0:00:40]} Rxb2 {[%emt 0:01:04]} 24.
Rc8+ {[%emt 0:00:38]} Rxc8 {[%emt 0:00:59]} 25. Rxc8+ {[%emt 0:00:17]} Kh7 {
[%emt 0:00:59]} 26. Rb8 {[%emt 0:00:32]} g4 {[%emt 0:01:01] it's impossible to
believe that Magnus lost this position - he was pushing probably too much -
feeling that he has to win.. still this example just indicative of the
tournament the best player and the world champ had} 27. Rxb6 {[%emt 0:00:32]}
b3 {[%emt 0:00:50]} 28. Kg2 {[%emt 0:00:33]} f5 {[%emt 0:00:45]} 29. h3 {
[%emt 0:00:16]} Kg8 {[%emt 0:00:38]} 30. hxg4 {[%emt 0:00:17]} fxg4 {[%emt 0:
00:14]} 31. Rxe6 {[%emt 0:00:17]} Rc2 {[%emt 0:00:35]} 32. Rb6 {[%emt 0:00:07]}
b2 {[%emt 0:00:36]} 33. Rb7 {[%emt 0:00:08]} Rd2 {[%emt 0:00:34]} 34. d5 {
[%emt 0:00:08]} Kf8 {[%emt 0:00:34]} 35. e4 {[%emt 0:00:07]} Ke8 {[%emt 0:00:
34]} 36. d6 {0:00:-5} Rxd6 {[%emt 0:00:33]} 37. Rxb2 {[%emt 0:00:07]} Rd4 {
[%emt 0:00:27]} 38. f3 {[%emt 0:00:08]} Kf7 {[%emt 0:00:27]} 39. Re2 {[%emt 0:
00:05]} gxf3+ {[%emt 0:00:07]} 40. Kxf3 {[%emt 0:00:06]} Kf6 {[%emt 0:00:09]}
41. Kf4 {[%emt 0:00:07]} g5+ {[%emt 0:00:11]} 42. Kg4 {[%emt 0:00:07]} Kg6 {
[%emt 0:00:11]} 43. Re3 {[%emt 0:00:07]} Ra4 {[%emt 0:00:12]} 44. Kf3 {[%emt 0:
00:08]} Kf6 {[%emt 0:00:12]} 45. Rb3 {[%emt 0:00:09]} Ra1 {[%emt 0:00:13]} 46.
Rb6+ {[%emt 0:00:09]} Ke5 $2 {[%emt 0:00:12] typical but the losing move} (
46... Kg7 $1 {was making a draw - but complicated stuff and truly not easy for
anyone with seconds left} 47. Rb5 Kh6 48. Kg4 Ra3) 47. Rb5+ {[%emt 0:00:10]}
Kf6 {[%emt 0:00:12]} 48. Rf5+ {[%emt 0:00:12]} Kg6 {[%emt 0:00:12]} 49. Kg4 {
[%emt 0:00:11]} Re1 {[%emt 0:00:12]} 50. Rxg5+ {[%emt 0:00:12]} Kf6 {[%emt 0:
00:13]} 51. Rf5+ {[%emt 0:00:12]} Ke6 {[%emt 0:00:14]} 52. Kf4 {[%emt 0:00:13]}
Rf1+ {[%emt 0:00:15]} 53. Kg5 {[%emt 0:00:12]} Re1 {[%emt 0:00:15]} 54. g4 {
[%emt 0:00:13]} Rxe4 {[%emt 0:00:16]} 55. Rf1 {[%emt 0:00:12]} Ra4 {[%emt 0:00:
15]} 56. Kh5 {[%emt 0:00:11]} Ra8 {[%emt 0:00:10]} 57. g5 {[%emt 0:00:12]} Rh8+
{[%emt 0:00:10]} 58. Kg6 {[%emt 0:00:13]} Kd5 {[%emt 0:00:11] White wins} 1-0